fUST/lending_fUST_20240120
["ID","MTS","AMOUNT","RATE_DAILY","PERIOD"]
[312210990,1705686651384,-2451.97967603,0.00043192,30]
[312210993,1705686651399,-1061.90415234,0.00043192,30]
[312210996,1705686651422,-19426.37920314,0.00043192,30]
[312211002,1705686651481,-250.0,0.00030564,2]
[312211004,1705686651491,-3857.74811056,0.00032054,2]
[312211006,1705686651506,-317.51188944,0.00032054,2]
[312211008,1705686651515,-4175.26,0.00032328,2]
[312211010,1705686651527,-4175.26,0.00032602,2]
[312211012,1705686651546,-4175.26,0.00032876,2]
[312211014,1705686651556,-4175.26,0.0003315,3]
[312211016,1705686651566,-4175.26,0.00033424,3]
[312211018,1705686651575,-19892.61184891,0.00043192,30]
[312211020,1705686651588,-1139.77511399,0.00043192,30]
[312211022,1705686651604,-7127.07854557,0.00043192,30]
[312211025,1705686651621,-42293.70322911,0.00043192,30]
[312211027,1705686651633,-3608.65306335,0.00043192,30]
[312211030,1705686651656,-150.0,0.00033564,2]
[312211032,1705686651667,-4175.49136362,0.00033698,3]
[312211034,1705686651676,-40748.45730743,0.00043192,30]
[312211036,1705686651688,-2631.81663268,0.00043192,30]
[312211038,1705686651699,-34599.76491754,0.00043192,30]
[312211040,1705686651711,-42635.08157479,0.00043192,30]
[312211052,1705686652090,-500.0,0.00027397,2]
[312211053,1705686652101,-500.0,0.00027671,2]
[312211054,1705686652112,-500.0,0.00027945,2]
[312211055,1705686652122,-500.0,0.00030136,2]
[312211056,1705686652134,-153.0,0.00030137,2]
[312211057,1705686652144,-307.4659568,0.00030137,2]
[312211058,1705686652155,-363.7718519,0.00030137,2]
[312211059,1705686652165,-153.0,0.00030137,2]
[312211060,1705686652175,-153.0,0.00030137,2]
[312211061,1705686652185,-199.0432224,0.00030137,2]
[312211062,1705686652195,-153.0,0.00030137,2]
[312211063,1705686652204,-199.0432224,0.00030137,2]
[312211064,1705686652214,-500.0,0.00030273,2]
[312211065,1705686652223,-153.0,0.000307,2]
[312211066,1705686652233,-153.0,0.000307,2]
[312211067,1705686652243,-153.0,0.000307,2]
[312211068,1705686652252,-153.0,0.000307,2]
[312211069,1705686652264,-153.0,0.000307,2]
[312211070,1705686652273,-255881.78713877,0.00043192,30]
[312212552,1705686668888,-763.6737386,0.00027387,2]
[312212553,1705686668909,-2088.71588189,0.00027387,2]
[312212554,1705686668933,-3751.04233468,0.00027395,2]
[312212555,1705686668955,-368.96929126,0.00027396,2]
[312212556,1705686668976,-154.93802479,0.00027396,2]
[312212557,1705686669000,-500.0,0.00027397,2]
[312212558,1705686669026,-1383.02,0.00027397,2]
[312212559,1705686669049,-500.0,0.00027397,2]
[312212560,1705686669069,-1487.02250933,0.000275,2]
[312212561,1705686681609,-500.0,0.00027397,2]
[312212562,1705686681633,-1728.43896508,0.000275,2]
[312212563,1705686681658,-500.0,0.00027671,2]
[312212564,1705686681689,-1383.02,0.00027671,2]
[312212565,1705686681714,-500.0,0.00027671,2]
[312212566,1705686681739,-500.0,0.00027671,2]
[312212567,1705686681763,-2192.05655439,0.00027921,2]
[312212568,1705686681789,-500.0,0.00027945,2]
[312212569,1705686681814,-1383.02,0.00027945,2]
[312212570,1705686681837,-500.0,0.00027945,2]
[312212572,1705686833657,1763.40834215,0.0001631,2]
[312212573,1705686850973,656.15080491,0.000125,2]
[312212577,1705686860166,364.19234743,0.0001631,2]
[312212579,1705687180172,247.9907633,0.0001631,2]
[312212580,1705687217598,1274.21523244,0.0001631,2]
[312212581,1705687640099,-296.75355326,0.0002607,2]
[312212582,1705687645085,-452.47030798,0.00026069,2]
[312212583,1705687647093,-250.0,0.00026069,2]
[312212584,1705687748110,-763.6737386,0.00026069,2]
[312212585,1705687748147,-4011.58774012,0.00026071,2]
[312212586,1705687748173,-823.86653966,0.00026072,2]
[312212587,1705687748197,-164.574171,0.00026073,2]
[312212588,1705687748219,-264.020091,0.00026249,2]
[312212589,1705687748243,-250.0,0.0002647,2]
[312212590,1705687748264,-526.58797391,0.00026701,2]
[312212654,1705687831795,-1147.96337425,0.00026701,2]
[312212656,1705687831807,-6184.12406377,0.00026701,2]
[312212658,1705687831816,-763.6737386,0.00026701,2]
[312212660,1705687831825,-204.1788994,0.0002671,2]
[312212662,1705687831835,-248.86039366,0.00026998,2]
[312212664,1705687831844,-500.0,0.00027397,2]
[312212666,1705687831853,-500.0,0.00027397,2]
[312212668,1705687831862,-500.0,0.00027397,2]
[312212670,1705687831871,-500.0,0.00027397,2]
[312212671,1705687831880,-500.0,0.00027397,2]
[312212673,1705687831889,-500.0,0.00027397,2]
[312212675,1705687831898,-500.0,0.00027397,2]
[312212677,1705687831907,-500.0,0.00027397,2]
[312212678,1705687831916,-518.27,0.00027397,2]
[312212680,1705687831925,-333.78941707,0.000275,2]
[312212682,1705687831934,-500.0,0.00027671,2]
[312212684,1705687831942,-500.0,0.00027671,2]
[312212685,1705687831952,-500.0,0.00027671,2]
[312212687,1705687831961,-500.0,0.00027671,2]
[312212689,1705687831970,-518.27,0.00027671,2]
[312212690,1705687831979,-553.3378604,0.0002785,4]
[312212692,1705687831988,-500.0,0.00027944,2]
[312212694,1705687831997,-504.00329423,0.00027944,2]
[312212696,1705687832007,-500.0,0.00027944,2]
[312212698,1705687832017,-500.0,0.00027944,2]
[312212700,1705687832026,-500.0,0.00027944,2]
[312212702,1705687832035,-500.0,0.00027944,2]
[312212704,1705687832044,-500.0,0.00027944,2]
[312212706,1705687832053,-1472.19,0.00027944,2]
[312212708,1705687832062,-500.0,0.00027944,2]
[312212710,1705687832071,-500.0,0.00027944,2]
[312212712,1705687832081,-500.0,0.00027944,2]
[312212714,1705687832090,-500.0,0.00027944,2]
[312212716,1705687832099,-500.0,0.00027944,2]
[312212718,1705687832108,-541.4,0.00027944,2]
[312212720,1705687832117,-500.0,0.00027944,2]
[312212722,1705687832126,-500.0,0.00027944,2]
[312212724,1705687832134,-500.0,0.00027944,2]
[312212726,1705687832143,-500.0,0.00027944,2]
[312212728,1705687832152,-582.93,0.00027944,2]
[312212730,1705687832161,-500.0,0.00027944,2]
[312212732,1705687832170,-500.0,0.00027944,2]
[312212734,1705687832178,-500.0,0.00027944,2]
[312212736,1705687832188,-500.0,0.00027944,2]
[312212738,1705687832198,-500.0,0.00027944,2]
[312212739,1705687832208,-500.0,0.00027944,2]
[312212741,1705687832216,-500.0,0.00027944,2]
[312212742,1705687832225,-500.0,0.00027944,2]
[312212744,1705687832235,-500.0,0.00027944,2]
[312212746,1705687832244,-500.0,0.00027944,2]
[312212747,1705687832258,-500.0,0.00027944,2]
[312212748,1705687832267,-500.0,0.00027944,2]
[312212749,1705687832276,-3215.46147441,0.00027945,2]
[312212750,1705687832285,-500.0,0.00027945,2]
[312212751,1705687832296,-500.0,0.00027945,2]
[312212752,1705687832306,-500.0,0.00027945,2]
[312212753,1705687832315,-500.0,0.00027945,2]
[312212754,1705687832325,-518.27,0.00027945,2]
[312212755,1705687832336,-305.51246618,0.00028,2]
[312212756,1705687832346,-200.0,0.00028039,15]
[312212757,1705687832355,-500.0,0.00028217,2]
[312212758,1705687832364,-500.0,0.00028217,2]
[312212759,1705687832373,-500.0,0.00028217,2]
[312212760,1705687832382,-500.0,0.00028217,2]
[312212761,1705687832391,-500.0,0.00028217,2]
[312212762,1705687832401,-500.0,0.00028217,2]
[312212763,1705687832410,-500.0,0.00028217,2]
[312212764,1705687832421,-500.0,0.00028218,2]
[312212765,1705687832430,-500.0,0.00028218,2]
[312212766,1705687832439,-500.0,0.00028218,2]
[312212767,1705687832450,-1472.19,0.00028218,2]
[312212768,1705687832459,-500.0,0.00028218,2]
[312212769,1705687832468,-500.0,0.00028218,2]
[312212770,1705687832477,-500.0,0.00028218,2]
[312212771,1705687832486,-500.0,0.00028218,2]
[312212772,1705687832495,-500.0,0.00028218,2]
[312212773,1705687832504,-500.0,0.00028218,2]
[312212774,1705687832514,-500.0,0.00028218,2]
[312212775,1705687832523,-582.93,0.00028218,2]
[312212776,1705687832532,-274.39459993,0.00028218,2]
[312212777,1705687832544,-225.60540007,0.00028218,2]
[312212778,1705687832554,-500.0,0.00028218,2]
[312212779,1705687832563,-500.0,0.00028218,2]
[312212780,1705687832572,-500.0,0.00028218,2]
[312212781,1705687832581,-500.0,0.00028218,2]
[312212782,1705687832590,-500.0,0.00028218,2]
[312212783,1705687832600,-500.0,0.00028218,2]
[312212784,1705687832609,-500.0,0.00028219,2]
[312212785,1705687832619,-500.0,0.00028219,2]
[312212786,1705687832628,-500.0,0.00028219,2]
[312212787,1705687832637,-500.0,0.00028219,2]
[312212788,1705687832646,-518.27,0.00028219,2]
[312212789,1705687832655,-2791.92,0.00028482,3]
[312212790,1705687832665,-2326.6,0.00028482,3]
[312212791,1705687832674,-1938.83,0.00028482,3]
[312212792,1705687832683,-3350.3,0.00028483,3]
[312212793,1705687832693,-531.84961709,0.00028491,7]
[312212794,1705687832703,-500.0,0.00028491,2]
[312212795,1705687832713,-154.93802479,0.00028492,2]
[312212796,1705687832722,-1739.74835498,0.00028492,2]
[312212797,1705687832731,-331.81485048,0.00028492,2]
[312212798,1705687832747,-168.18514952,0.00028492,2]
[312212799,1705687832757,-500.0,0.00028492,2]
[312212800,1705687832766,-1472.19,0.00028492,2]
[312212801,1705687832776,-500.0,0.00028492,2]
[312212802,1705687832785,-500.0,0.00028492,2]
[312212803,1705687832794,-500.0,0.00028492,2]
[312212804,1705687832804,-500.0,0.00028492,2]
[312212805,1705687832814,-500.0,0.00028492,2]
[312212806,1705687832823,-500.0,0.00028492,2]
[312212807,1705687832832,-582.93,0.00028492,2]
[312212808,1705687832841,-270.79,0.00028492,2]
[312212809,1705687832850,-252.19738468,0.00028492,2]
[312212860,1705687837883,-296.80261532,0.00028492,2]
[312212861,1705687837893,-500.0,0.00028492,2]
[312212862,1705687837902,-500.0,0.00028492,2]
[312212863,1705687837911,-461.18,0.00028492,2]
[312212864,1705687837920,-500.0,0.00028492,2]
[312212865,1705687837929,-500.0,0.00028492,2]
[312212866,1705687837938,-500.0,0.00028493,2]
[312212867,1705687837947,-500.0,0.00028493,2]
[312212868,1705687837958,-500.0,0.00028493,2]
[312212869,1705687837967,-500.0,0.00028493,2]
[312212870,1705687837977,-518.27,0.00028493,2]
[312212871,1705687837986,-500.0,0.00028765,2]
[312212872,1705687837996,-500.0,0.00028766,2]
[312212873,1705687838006,-533.52,0.00028766,2]
[312212874,1705687838015,-1472.19,0.00028766,2]
[312212875,1705687838024,-500.0,0.00028766,2]
[312212876,1705687838035,-500.0,0.00028766,2]
[312212877,1705687838044,-500.0,0.00028766,2]
[312212878,1705687838054,-417.71,0.00028766,2]
[312212879,1705687838063,-500.0,0.00028766,2]
[312212880,1705687838074,-582.93,0.00028766,2]
[312212881,1705687838083,-500.0,0.00028766,2]
[312212882,1705687838093,-500.0,0.00028766,2]
[312212883,1705687838102,-500.0,0.00028766,2]
[312212884,1705687838111,-500.0,0.00028766,2]
[312212885,1705687838121,-392.64216811,0.00028767,2]
[312212886,1705687838130,-500.0,0.00028767,2]
[312212887,1705687838140,-408.33012281,0.00028767,2]
[312212888,1705687838149,-500.0,0.00028767,2]
[312212889,1705687838159,-518.27,0.00028767,2]
[312212891,1705687838169,-7890.956652,0.000288,2]
[312212893,1705687838178,-15328.83068349,0.000288,2]
[312212894,1705687838188,-1615.7,0.0002899,3]
[312212895,1705687838198,-154.76784823,0.00029,2]
[312212896,1705687838211,-832.47642224,0.00029,2]
[312212897,1705687838221,-2036.31691242,0.00029,2]
[312212898,1705687838230,-54792.97642703,0.00029,2]
[312212899,1705687838239,-1879.41245692,0.00029038,2]
[312212900,1705687838249,-500.0,0.00029039,2]
[312212901,1705687838261,-500.0,0.0002904,2]
[312212902,1705687838270,-1472.19,0.0002904,2]
[312212903,1705687838279,-500.0,0.0002904,2]
[312212904,1705687838289,-500.0,0.0002904,2]
[312212905,1705687838298,-500.0,0.0002904,2]
[312212906,1705687838307,-500.0,0.0002904,2]
[312212907,1705687838318,-582.93,0.0002904,2]
[312212908,1705687838328,-500.0,0.0002904,2]
[312212909,1705687838338,-500.0,0.0002904,2]
[312212910,1705687838348,-500.0,0.0002904,2]
[312212911,1705687838358,-500.0,0.0002904,2]
[312212912,1705687838367,-500.0,0.00029041,2]
[312212913,1705687838377,-500.0,0.00029041,2]
[312212914,1705687838386,-518.27,0.00029041,2]
[312212915,1705687838396,-484.51719433,0.00029231,2]
[312212916,1705687838405,-525.23345431,0.00029231,2]
[312212917,1705687838414,-500.0,0.00029231,2]
[312212918,1705687838424,-500.0,0.00029231,2]
[312212919,1705687838433,-500.0,0.00029231,2]
[312212920,1705687838442,-619.3911679,0.00029231,2]
[312212921,1705687838452,-381.57607389,0.00029231,2]
[312212922,1705687838462,-1877.01580683,0.00029232,4]
[312212923,1705687838471,-2820.30070592,0.00029232,4]
[312212924,1705687838480,-11501.76278485,0.00029232,4]
[312212925,1705687838489,-942.91584265,0.00029236,4]
[312212926,1705687838498,-500.0,0.00029314,2]
[312212927,1705687838508,-1472.19,0.00029314,2]
[312212928,1705687838517,-500.0,0.00029314,2]
[312212929,1705687838526,-500.0,0.00029314,2]
[312212930,1705687838536,-500.0,0.00029314,2]
[312212931,1705687838546,-500.0,0.00029314,2]
[312212932,1705687838555,-582.93,0.00029314,2]
[312212933,1705687838564,-433.48,0.00029314,2]
[312212934,1705687838573,-500.0,0.00029314,2]
[312212935,1705687838582,-531.3,0.00029314,2]
[312212936,1705687838592,-500.0,0.00029314,2]
[312212937,1705687838601,-500.0,0.00029315,2]
[312212938,1705687838610,-500.0,0.00029315,2]
[312212939,1705687838620,-518.27,0.00029315,2]
[312212940,1705687838629,-153.0,0.00029315,2]
[312212941,1705687838639,-153.0,0.00029315,2]
[312212942,1705687838652,-153.0,0.00029315,2]
[312212943,1705687838662,-153.0,0.00029315,2]
[312212944,1705687838672,-153.0,0.00029315,2]
[312212945,1705687838766,-153.0,0.00029315,2]
[312212946,1705687838776,-153.0,0.00029315,2]
[312212947,1705687838786,-153.0,0.00029315,2]
[312212948,1705687838795,-153.0,0.00029315,2]
[312212949,1705687838805,-153.0,0.00029315,2]
[312212950,1705687838814,-200.73485866,0.00029588,3]
[312212951,1705687838824,-1472.19,0.00029588,2]
[312212952,1705687838833,-500.0,0.00029588,2]
[312212953,1705687838843,-270.73,0.00029588,2]
[312212954,1705687838853,-500.0,0.00029588,2]
[312212955,1705687838863,-500.0,0.00029588,2]
[312212956,1705687838873,-582.93,0.00029588,2]
[312212957,1705687838882,-305.9,0.00029588,2]
[312212958,1705687838892,-500.0,0.00029588,2]
[312212959,1705687838901,-500.0,0.00029589,2]
[312212960,1705687838911,-500.0,0.00029589,2]
[312212961,1705687838920,-518.27,0.00029589,2]
[312212962,1705687838930,-1472.19,0.00029862,2]
[312212963,1705687838939,-500.0,0.00029862,2]
[312212964,1705687838949,-500.0,0.00029862,2]
[312212965,1705687838963,-500.0,0.00029862,2]
[312212966,1705687838973,-582.93,0.00029862,2]
[312212967,1705687838982,-500.0,0.00029862,2]
[312212968,1705687838992,-500.0,0.00029863,2]
[312212969,1705687839001,-500.0,0.00029863,2]
[312212970,1705687839011,-518.27,0.00029863,2]
[312212971,1705687839021,-332.2608557,0.00029878,2]
[312212972,1705687839030,-199.0432224,0.00029878,2]
[312212973,1705687839040,-671.11039343,0.000299,2]
[312212974,1705687839049,-154.84514985,0.00029998,2]
[312212975,1705687839058,-2060.84094292,0.00029998,2]
[312212976,1705687839068,-157.77559155,0.00029998,2]
[312212977,1705687839077,-4047.19041287,0.00029998,2]
[312212978,1705687839086,-1142.71503351,0.00029998,2]
[312212979,1705687839095,-155.19121382,0.00029998,2]
[312212980,1705687839104,-2000.88810436,0.00029998,2]
[312212981,1705687839114,-1581.11940922,0.00029998,2]
[312212982,1705687839123,-399.35137914,0.00029998,2]
[312212983,1705687839133,-212.37620676,0.00029998,2]
[312212984,1705687839142,-163.63,0.00029999,2]
[312212985,1705687839151,-163.63,0.00029999,2]
[312212986,1705687839160,-163.63,0.00029999,2]
[312212987,1705687839169,-163.62,0.00029999,2]
[312212988,1705687839178,-163.62,0.00029999,2]
[312212989,1705687839187,-163.62,0.00029999,2]
[312212990,1705687839196,-163.62,0.00029999,2]
[312212991,1705687839208,-163.62,0.00029999,2]
[312212992,1705687839217,-163.62,0.00029999,2]
[312212993,1705687839227,-163.62,0.00029999,2]
[312212994,1705687839236,-213.45196922,0.00029999,4]
[312212995,1705687839250,-426.90393844,0.00029999,4]
[312212996,1705687839259,-432.8970436,0.0003,4]
[312212997,1705687839269,-195.20473695,0.0003,4]
[312212998,1705687839277,-154.76784823,0.0003,2]
[312212999,1705687839287,-283.06089695,0.0003,3]
[312213000,1705687839296,-682.3767278,0.0003,3]
[312213001,1705687839305,-29944.40132639,0.0003,2]
[312213002,1705687839314,-688.01285151,0.0003,4]
[312213003,1705687839324,-30319.07639528,0.0003,2]
[312213004,1705687839333,-30479.54764278,0.0003,3]
[312213005,1705687839342,-2103.77243551,0.0003,4]
[312213006,1705687839351,-18583.86209402,0.0003,2]
[312213007,1705687839361,-699.75171641,0.0003,2]
[312213008,1705687839370,-547457.78945508,0.0003,30]
[312213009,1705687839379,-3760.16732,0.0003,2]
[312213010,1705687839388,-539.324489,0.0003,3]
[312213011,1705687839396,-181.0,0.0003,2]
[312213012,1705687839405,-181440.50369735,0.00030036,2]
[312213033,1705687841000,-385.76084,0.00027944,2]
[312213034,1705687841011,-114.23916,0.00027944,2]
[312213035,1705687841020,-500.0,0.00029231,2]
[312213036,1705687841030,-500.0,0.00029231,2]
[312213037,1705687841038,-122.33084,0.00029231,2]
[312213038,1705687841050,-377.66916,0.00029231,2]
[312213039,1705687841058,-1113.07584,0.00030036,2]
[312213040,1705687841069,-21854.78063807,0.00030036,2]
[312213067,1705687842834,-500.0,0.00027944,2]
[312213069,1705687842844,-500.0,0.00028218,2]
[312213071,1705687842853,-500.0,0.00029231,2]
[312213073,1705687842862,-500.0,0.00029231,2]
[312213075,1705687842874,-340.03110168,0.00029231,2]
[312213077,1705687842885,-39281.58873245,0.00030036,2]
[312213178,1705687846155,-23526.58780586,0.00030036,2]
[312213236,1705688814114,-310.39101934,0.0002647,2]
[312213238,1705688831117,-1130.75735343,0.0002647,2]
[312213239,1705688840113,-167.915799,0.0002647,2]
[312213280,1705689032023,-167.160274,0.00026343,2]
[312213281,1705689032033,-151.77904229,0.00026417,2]
[312213282,1705689032042,-2154.36800095,0.0002647,2]
[312213283,1705689032053,-1428.14440498,0.0002647,2]
[312213285,1705689032065,-345.737673,0.0002647,2]
[312213286,1705689032075,-13957.94732595,0.0002647,2]
[312213288,1705689032084,-763.6737386,0.0002647,2]
[312213290,1705689032094,-255.83809238,0.00026701,2]
[312213292,1705689032103,-399.87965736,0.00026701,2]
[312213294,1705689032113,-492.67635976,0.00026998,5]
[312213379,1705689038082,-242.52346398,0.00026998,5]
[312213381,1705689038092,-278.76139798,0.00027898,2]
[312213383,1705689038101,-983.71984278,0.00027898,2]
[312213385,1705689038111,-1701.46915443,0.00027936,2]
[312213387,1705689038120,-442.01048546,0.00027944,2]
[312213389,1705689038129,-500.0,0.00027944,2]
[312213391,1705689038138,-500.0,0.00027944,2]
[312213393,1705689038147,-500.0,0.00027944,2]
[312213395,1705689038156,-500.0,0.00027944,2]
[312213396,1705689038165,-500.0,0.00027944,2]
[312213398,1705689038174,-500.0,0.00027944,2]
[312213400,1705689038184,-512.79297288,0.00027944,2]
[312213401,1705689038192,-500.0,0.00027944,2]
[312213402,1705689038201,-500.0,0.00027944,2]
[312213403,1705689038210,-327.43482098,0.00027944,2]
[312213404,1705689038219,-500.0,0.00027944,2]
[312213405,1705689038228,-500.0,0.00027944,2]
[312213406,1705689038236,-500.0,0.00027944,2]
[312213407,1705689038245,-500.0,0.00027944,2]
[312213408,1705689038253,-500.0,0.00028216,2]
[312213409,1705689038264,-500.0,0.00028216,2]
[312213410,1705689038274,-500.0,0.00028216,2]
[312213411,1705689038283,-500.0,0.00028216,2]
[312213412,1705689038292,-500.0,0.00028216,2]
[312213413,1705689038301,-500.0,0.00028216,2]
[312213414,1705689038310,-500.0,0.00028216,2]
[312213415,1705689038319,-500.0,0.00028216,2]
[312213416,1705689038328,-500.0,0.00028216,2]
[312213417,1705689038337,-500.0,0.00028216,2]
[312213418,1705689038346,-500.0,0.00028216,2]
[312213419,1705689038354,-500.0,0.00028216,2]
[312213420,1705689038363,-500.0,0.00028216,2]
[312213421,1705689038372,-524.51,0.00028216,2]
[312213422,1705689038380,-2114.47,0.00028216,2]
[312213423,1705689038390,-500.0,0.00028216,2]
[312213424,1705689038398,-604.21531739,0.00028216,2]
[312213425,1705689038407,-500.0,0.00028216,2]
[312213426,1705689038416,-500.0,0.00028216,2]
[312213427,1705689038425,-500.0,0.00028216,2]
[312213428,1705689038433,-500.0,0.00028217,2]
[312213429,1705689038442,-500.0,0.00028217,2]
[312213430,1705689038451,-500.0,0.00028217,2]
[312213431,1705689038460,-500.0,0.00028217,14]
[312213432,1705689038468,-500.0,0.00028217,2]
[312213433,1705689038478,-488.04280479,0.00028217,2]
[312213434,1705689038487,-603.61780197,0.00028218,2]
[312213435,1705689038497,-500.0,0.00028218,2]
[312213436,1705689038509,-500.0,0.00028218,2]
[312213437,1705689038518,-500.0,0.0002849,2]
[312213438,1705689038529,-500.0,0.0002849,2]
[312213439,1705689038538,-593.3,0.0002849,2]
[312213440,1705689038548,-500.0,0.0002849,2]
[312213441,1705689038557,-545.6602699,0.0002849,2]
[312213442,1705689038566,-2114.47,0.0002849,2]
[312213443,1705689038575,-500.0,0.0002849,2]
[312213444,1705689038584,-500.0,0.0002849,2]
[312213445,1705689038593,-500.0,0.0002849,2]
[312213446,1705689038602,-481.41584895,0.00028491,2]
[312213447,1705689038611,-500.0,0.00028492,2]
[312213448,1705689038621,-500.0,0.00028492,2]
[312213449,1705689038630,-1441.90150751,0.00028761,2]
[312213451,1705689038639,-258.76819595,0.00028762,2]
[312213452,1705689038648,-155.02131266,0.00028762,2]
[312213454,1705689038657,-500.0,0.00028763,2]
[312213455,1705689038666,-500.0,0.00028763,2]
[312213456,1705689038675,-500.0,0.00028763,2]
[312213458,1705689038684,-500.0,0.00028763,2]
[312213460,1705689038696,-500.0,0.00028763,2]
[312213462,1705689038706,-500.0,0.00028763,2]
[312213464,1705689038715,-500.0,0.00028763,2]
[312213466,1705689038725,-540.7180897,0.00028763,2]
[312213468,1705689038734,-500.0,0.00028763,2]
[312213470,1705689038743,-500.0,0.00028763,2]
[312213472,1705689038752,-500.0,0.00028763,2]
[312213474,1705689038765,-502.26499882,0.00028763,2]
[312213476,1705689038775,-500.0,0.00028763,2]
[312213478,1705689038784,-500.0,0.00028763,2]
[312213480,1705689038793,-282.33,0.00028764,2]
[312213481,1705689038802,-500.0,0.00028764,2]
[312213483,1705689038812,-2114.47,0.00028764,2]
[312213485,1705689038821,-500.0,0.00028764,2]
[312213487,1705689038831,-500.0,0.00028766,2]
[312213489,1705689038840,-500.0,0.00028766,2]
[312213491,1705689038849,-278.47783404,0.00029,2]
[312213494,1705689038860,-1879.41245692,0.00029,2]
[312213495,1705689038870,-500.0,0.00029037,2]
[312213498,1705689038879,-587.89603541,0.00029037,2]
[312213500,1705689038889,-500.0,0.00029037,2]
[312213501,1705689038899,-500.0,0.00029038,2]
[312213503,1705689038908,-2114.47,0.00029038,2]
[312213505,1705689038917,-500.0,0.00029038,2]
[312213507,1705689038926,-500.0,0.0002904,2]
[312213509,1705689038936,-500.0,0.0002904,2]
[312213511,1705689038945,-4074.64868512,0.00029232,4]
[312213513,1705689038954,-235.72896066,0.00029232,4]
[312213515,1705689038963,-77127.99795116,0.00029232,5]
[312213517,1705689038973,-3404.55510477,0.00029232,4]
[312213519,1705689038982,-200.0,0.00029292,15]
[312213521,1705689038992,-500.0,0.00029312,2]
[312213523,1705689039002,-2114.47,0.00029312,2]
[312213525,1705689039014,-500.0,0.00029312,2]
[312213527,1705689039023,-500.0,0.00029314,2]
[312213529,1705689039033,-500.0,0.00029314,2]
[312213531,1705689039042,-179.7666778,0.00029487,2]
[312213533,1705689039051,-500.0,0.00029586,2]
[312213535,1705689039061,-2114.47,0.00029586,2]
[312213537,1705689039070,-500.0,0.00029586,2]
[312213539,1705689039081,-487.71677901,0.00029586,2]
[312213541,1705689039090,-484.51719433,0.00029586,2]
[312213543,1705689039099,-500.0,0.00029586,2]
[312213545,1705689039107,-500.0,0.00029586,2]
[312213547,1705689039116,-500.0,0.00029586,2]
[312213549,1705689039128,-491.70933837,0.00029586,2]
[312213551,1705689039137,-500.0,0.00029586,2]
[312213553,1705689039146,-500.0,0.00029586,2]
[312213555,1705689039155,-500.0,0.00029586,2]
[312213557,1705689039164,-500.0,0.00029586,2]
[312213559,1705689039173,-500.0,0.00029586,2]
[312213561,1705689039182,-500.0,0.00029586,2]
[312213563,1705689039191,-500.0,0.00029586,2]
[312213565,1705689039200,-500.0,0.00029586,2]
[312213567,1705689039209,-644.04976269,0.00029586,2]
[312213569,1705689039218,-510.52171822,0.00029586,2]
[312213571,1705689039227,-500.0,0.00029586,2]
[312213572,1705689039237,-500.0,0.00029586,2]
[312213574,1705689039246,-500.0,0.00029588,2]
[312213577,1705689039258,-500.0,0.00029588,2]
[312213578,1705689039267,-155.64597004,0.0002986,2]
[312213580,1705689039276,-2114.47,0.0002986,2]
[312213582,1705689039286,-500.0,0.0002986,2]
[312213585,1705689039295,-500.0,0.00029862,2]
[312213586,1705689039304,-500.0,0.00029862,2]
[312213588,1705689039313,-41925.90648801,0.00029936,2]